[Event "Early-Titled-Tuesday-Blitz-January-30-2024"]
[Site "Chess.com"]
[Date "2024.01.30"]
[Round "9"]
[White "deribas12345"]
[Black "Matols"]
[Result "1/2-1/2"]
[WhiteElo "2503"]
[BlackElo "2398"]
[TimeControl "180+1"]
[EndTime "9:49:49 PST"]
[Termination "Game drawn by repetition"]

1. d4 {[%clk 0:03:00.9]} 1... d5 {[%clk 0:02:58.6]} 2. c4 {[%clk 0:03:00.2]}
2... e6 {[%clk 0:02:58.8]} 3. Nc3 {[%clk 0:03:00.3]} 3... Nf6 {[%clk 0:02:59]}
4. cxd5 {[%clk 0:03:00.5]} 4... exd5 {[%clk 0:02:59.6]} 5. Bg5 {[%clk
0:03:00.4]} 5... Be7 {[%clk 0:02:58.8]} 6. e3 {[%clk 0:03:00.8]} 6... c6 {[%clk
0:02:58.8]} 7. Bd3 {[%clk 0:03:01.1]} 7... Nbd7 {[%clk 0:02:59.2]} 8. Nge2
{[%clk 0:03:00.8]} 8... Nh5 {[%clk 0:02:58.2]} 9. Bxe7 {[%clk 0:03:00.1]} 9...
Qxe7 {[%clk 0:02:59.1]} 10. O-O {[%clk 0:03:00.5]} 10... O-O {[%clk 0:02:55.9]}
11. Qc2 {[%clk 0:03:00.5]} 11... g6 {[%clk 0:02:55]} 12. e4 {[%clk 0:02:58.4]}
12... dxe4 {[%clk 0:02:52.6]} 13. Nxe4 {[%clk 0:02:58.4]} 13... Ndf6 {[%clk
0:02:50]} 14. N4c3 {[%clk 0:02:50]} 14... Be6 {[%clk 0:02:40.1]} 15. Rfe1 {[%clk
0:02:49.3]} 15... Qd6 {[%clk 0:02:35.1]} 16. Rad1 {[%clk 0:02:45.5]} 16... Rad8
{[%clk 0:02:33.5]} 17. h3 {[%clk 0:02:44.1]} 17... Rfe8 {[%clk 0:02:31.1]} 18.
Qa4 {[%clk 0:02:38.1]} 18... Bd5 {[%clk 0:01:49.9]} 19. Qxa7 {[%clk 0:02:28]}
19... b5 {[%clk 0:01:31.8]} 20. Qc5 {[%clk 0:02:18.5]} 20... Qb8 {[%clk
0:01:06.4]} 21. Nxd5 {[%clk 0:02:08.6]} 21... Nxd5 {[%clk 0:01:07.3]} 22. Nc3
{[%clk 0:02:00.5]} 22... Nxc3 {[%clk 0:00:53.1]} 23. bxc3 {[%clk 0:01:58.8]}
23... Nf4 {[%clk 0:00:49.1]} 24. Bf1 {[%clk 0:01:56.3]} 24... Qa8 {[%clk
0:00:41.1]} 25. a3 {[%clk 0:01:45.9]} 25... h5 {[%clk 0:00:38]} 26. c4 {[%clk
0:01:36.7]} 26... bxc4 {[%clk 0:00:35.9]} 27. Bxc4 {[%clk 0:01:36.9]} 27... Kg7
{[%clk 0:00:27.1]} 28. Qg5 {[%clk 0:01:26.8]} 28... Nd5 {[%clk 0:00:19]} 29. Qg3
{[%clk 0:01:20.6]} 29... Rxe1+ {[%clk 0:00:13.7]} 30. Rxe1 {[%clk 0:01:20]}
30... Qa4 {[%clk 0:00:10.2]} 31. Qb3 {[%clk 0:01:12.9]} 31... Qa5 {[%clk
0:00:08.6]} 32. Rc1 {[%clk 0:01:11]} 32... Re8 {[%clk 0:00:08.6]} 33. Bf1 {[%clk
0:01:09.1]} 33... Re1 {[%clk 0:00:07.3]} 34. Rxe1 {[%clk 0:01:08.1]} 34... Qxe1
{[%clk 0:00:08.2]} 35. g3 {[%clk 0:00:53.4]} 35... Nc3 {[%clk 0:00:08.1]} 36.
Qc4 {[%clk 0:00:51.9]} 36... Ne4 {[%clk 0:00:06.9]} 37. Qe2 {[%clk 0:00:51.1]}
37... Qb1 {[%clk 0:00:04.6]} 38. Kg2 {[%clk 0:00:50.4]} 38... f5 {[%clk
0:00:03.6]} 39. a4 {[%clk 0:00:48.3]} 39... Qa1 {[%clk 0:00:03.1]} 40. Qc4
{[%clk 0:00:45.7]} 40... Nd2 {[%clk 0:00:01.8]} 41. Qd3 {[%clk 0:00:41.3]} 41...
Nxf1 {[%clk 0:00:02.1]} 42. Qxf1 {[%clk 0:00:41.5]} 42... Qxd4 {[%clk
0:00:02.8]} 43. Qa6 {[%clk 0:00:36.7]} 43... Qd5+ {[%clk 0:00:02.7]} 44. Kh2
{[%clk 0:00:37.1]} 44... Qf3 {[%clk 0:00:02.6]} 45. Qa7+ {[%clk 0:00:35.8]}
45... Kh6 {[%clk 0:00:02.3]} 46. Qe3+ {[%clk 0:00:34.6]} 46... Qxe3 {[%clk
0:00:02.6]} 47. fxe3 {[%clk 0:00:35.5]} 47... c5 {[%clk 0:00:02.6]} 48. a5
{[%clk 0:00:36.1]} 48... c4 {[%clk 0:00:03.3]} 49. a6 {[%clk 0:00:37]} 49... c3
{[%clk 0:00:04]} 50. a7 {[%clk 0:00:37.7]} 50... c2 {[%clk 0:00:04.8]} 51. a8=Q
{[%clk 0:00:38]} 51... c1=Q {[%clk 0:00:05.5]} 52. Qh8+ {[%clk 0:00:27.7]} 52...
Kg5 {[%clk 0:00:06]} 53. h4+ {[%clk 0:00:16.8]} 53... Kg4 {[%clk 0:00:06.6]} 54.
Qd4+ {[%clk 0:00:17]} 54... Kf3 {[%clk 0:00:06.4]} 55. Qf4+ {[%clk 0:00:16.6]}
55... Ke2 {[%clk 0:00:07]} 56. Qg5 {[%clk 0:00:08.2]} 56... Qxe3 {[%clk
0:00:07.3]} 57. Qxg6 {[%clk 0:00:08.5]} 57... Qf2+ {[%clk 0:00:07.4]} 58. Kh3
{[%clk 0:00:07.6]} 58... Qf1+ {[%clk 0:00:07.7]} 59. Kh2 {[%clk 0:00:07.8]}
59... Qf2+ {[%clk 0:00:07.9]} 60. Kh3 {[%clk 0:00:08]} 60... Qf1+ {[%clk
0:00:08]} 61. Kh2 {[%clk 0:00:08.5]} 61... Qf2+ {[%clk 0:00:08.2]} 1/2-1/2

[Event "Early-Titled-Tuesday-Blitz-January-30-2024"]
[Site "Chess.com"]
[Date "2024.01.30"]
[Round "9"]
[White "Chernobay_Artem"]
[Black "GMWSO"]
[Result "0-1"]
[WhiteElo "2661"]
[BlackElo "3125"]
[TimeControl "180+1"]
[EndTime "9:49:50 PST"]
[Termination "GMWSO won by resignation"]

1. d4 {[%clk 0:03:00.9]} 1... d5 {[%clk 0:02:59.1]} 2. c4 {[%clk 0:03:01]} 2...
c6 {[%clk 0:02:59.2]} 3. Nf3 {[%clk 0:03:00.8]} 3... Nf6 {[%clk 0:02:59.1]} 4.
Nc3 {[%clk 0:03:01]} 4... a6 {[%clk 0:02:59.2]} 5. c5 {[%clk 0:02:59.9]} 5...
Bf5 {[%clk 0:02:58.2]} 6. Bf4 {[%clk 0:02:58.7]} 6... Nbd7 {[%clk 0:02:58]} 7.
e3 {[%clk 0:02:57.5]} 7... Nh5 {[%clk 0:02:58]} 8. Bg5 {[%clk 0:02:52.7]} 8...
h6 {[%clk 0:02:47]} 9. Bh4 {[%clk 0:02:52.5]} 9... g5 {[%clk 0:02:46.8]} 10. Bg3
{[%clk 0:02:51]} 10... Bg7 {[%clk 0:02:42]} 11. Bd3 {[%clk 0:02:44.4]} 11...
Bxd3 {[%clk 0:02:39.6]} 12. Qxd3 {[%clk 0:02:45.3]} 12... Nxg3 {[%clk 0:02:39]}
13. hxg3 {[%clk 0:02:44.1]} 13... e5 {[%clk 0:02:38.9]} 14. Qf5 {[%clk
0:02:38.1]} 14... Qe7 {[%clk 0:02:31.6]} 15. O-O {[%clk 0:02:30.1]} 15... Qe6
{[%clk 0:02:30.8]} 16. Qc2 {[%clk 0:01:51.5]} 16... e4 {[%clk 0:02:23.7]} 17.
Nd2 {[%clk 0:01:49.8]} 17... h5 {[%clk 0:02:22.8]} 18. f3 {[%clk 0:01:15.5]}
18... h4 {[%clk 0:02:22]} 19. gxh4 {[%clk 0:01:12.2]} 19... exf3 {[%clk
0:02:13.8]} 20. Nxf3 {[%clk 0:01:10]} 20... g4 {[%clk 0:02:10.7]} 21. Ne5 {[%clk
0:00:57.4]} 21... Nxe5 {[%clk 0:02:07.1]} 22. dxe5 {[%clk 0:00:58.3]} 22... Rxh4
{[%clk 0:02:06.8]} 23. Qf5 {[%clk 0:00:50]} 23... Bxe5 {[%clk 0:02:04.2]} 24.
Qg5 {[%clk 0:00:39.2]} 24... Rh8 {[%clk 0:02:01.5]} 25. Rf5 {[%clk 0:00:33.7]}
25... f6 {[%clk 0:01:54]} 26. Qg6+ {[%clk 0:00:26.2]} 26... Ke7 {[%clk 0:01:43]}
27. Qg7+ {[%clk 0:00:22.4]} 27... Qf7 {[%clk 0:01:42.2]} 28. Rxe5+ {[%clk
0:00:21.7]} 28... fxe5 {[%clk 0:01:43.1]} 29. Qxe5+ {[%clk 0:00:22.4]} 29... Kd7
{[%clk 0:01:39.5]} 30. Qd6+ {[%clk 0:00:20.7]} 30... Ke8 {[%clk 0:01:39]} 31.
Rf1 {[%clk 0:00:14.1]} 31... Rh1+ {[%clk 0:01:35]} 32. Kxh1 {[%clk 0:00:12.7]}
32... Qxf1+ {[%clk 0:01:35.9]} 33. Kh2 {[%clk 0:00:13.5]} 33... Qf5 {[%clk
0:01:34.6]} 34. Ne2 {[%clk 0:00:08.1]} 34... g3+ {[%clk 0:01:27.4]} 35. Nxg3
{[%clk 0:00:07.4]} 35... Qh7+ {[%clk 0:01:27]} 36. Kg1 {[%clk 0:00:07.5]} 36...
Qe7 {[%clk 0:01:24.8]} 37. Qg6+ {[%clk 0:00:07.4]} 37... Kd7 {[%clk 0:01:22.9]}
38. Nf5 {[%clk 0:00:07.1]} 38... Qxc5 {[%clk 0:00:58.3]} 39. Qf7+ {[%clk
0:00:06.3]} 39... Kc8 {[%clk 0:00:56.6]} 40. Qe8+ {[%clk 0:00:06.2]} 40... Kc7
{[%clk 0:00:57.2]} 41. Qxa8 {[%clk 0:00:05.9]} 41... Qc1+ {[%clk 0:00:57.2]} 42.
Kh2 {[%clk 0:00:06.2]} 42... Qxb2 {[%clk 0:00:56.4]} 43. Qe8 {[%clk 0:00:05.2]}
43... Qxa2 {[%clk 0:00:55]} 44. Qe5+ {[%clk 0:00:05]} 44... Kb6 {[%clk
0:00:55.3]} 45. Qd4+ {[%clk 0:00:03.8]} 45... c5 {[%clk 0:00:55]} 46. Qf6+
{[%clk 0:00:03.6]} 46... Ka7 {[%clk 0:00:54.3]} 47. Kh3 {[%clk 0:00:03.1]} 47...
a5 {[%clk 0:00:49.8]} 48. g4 {[%clk 0:00:03.3]} 48... a4 {[%clk 0:00:49.7]} 49.
Ne7 {[%clk 0:00:03.3]} 49... Qd2 {[%clk 0:00:44.7]} 50. Nc8+ {[%clk 0:00:03]}
50... Kb8 {[%clk 0:00:45.1]} 51. Nb6 {[%clk 0:00:01.5]} 51... Qxe3+ {[%clk
0:00:45]} 52. Kh4 {[%clk 0:00:02.1]} 52... Qe1+ {[%clk 0:00:34]} 53. Kh5 {[%clk
0:00:02.2]} 53... Qe8+ {[%clk 0:00:34]} 54. Kh6 {[%clk 0:00:02.9]} 54... a3
{[%clk 0:00:32.8]} 55. Qd6+ {[%clk 0:00:03.2]} 55... Ka7 {[%clk 0:00:33.2]} 56.
Nd7 {[%clk 0:00:02.6]} 56... Qe3+ {[%clk 0:00:28]} 57. Kg6 {[%clk 0:00:02.3]}
57... c4 {[%clk 0:00:28]} 58. Qc7 {[%clk 0:00:01.4]} 58... Qe6+ {[%clk
0:00:25.8]} 59. Kg5 {[%clk 0:00:01.7]} 59... a2 {[%clk 0:00:24.7]} 60. Qa5+
{[%clk 0:00:01.8]} 60... Qa6 {[%clk 0:00:24.9]} 61. Qc5+ {[%clk 0:00:02.5]}
61... b6 {[%clk 0:00:25.3]} 62. Qc7+ {[%clk 0:00:02.7]} 62... Qb7 {[%clk
0:00:25.6]} 63. Qe5 {[%clk 0:00:01.7]} 63... Qxd7 {[%clk 0:00:25.1]} 64. Kh6
{[%clk 0:00:02.3]} 64... d4 {[%clk 0:00:24.5]} 65. g5 {[%clk 0:00:02.8]} 65...
a1=Q {[%clk 0:00:24.3]} 0-1

[Event "Early-Titled-Tuesday-Blitz-January-30-2024"]
[Site "Chess.com"]
[Date "2024.01.30"]
[Round "9"]
[White "CaspiIsrael"]
[Black "zverr1"]
[Result "0-1"]
[WhiteElo "2743"]
[BlackElo "2588"]
[TimeControl "180+1"]
[EndTime "9:49:51 PST"]
[Termination "zverr1 won by resignation"]

1. e4 {[%clk 0:03:00.9]} 1... c5 {[%clk 0:02:57]} 2. Nf3 {[%clk 0:03:01.3]} 2...
Nc6 {[%clk 0:02:51.9]} 3. d4 {[%clk 0:03:00.2]} 3... cxd4 {[%clk 0:02:51.9]} 4.
Nxd4 {[%clk 0:03:01.1]} 4... Nf6 {[%clk 0:02:49.2]} 5. Nc3 {[%clk 0:03:01.4]}
5... e5 {[%clk 0:02:48.5]} 6. Ndb5 {[%clk 0:03:01.2]} 6... d6 {[%clk 0:02:49]}
7. Bg5 {[%clk 0:03:00.6]} 7... a6 {[%clk 0:02:48.4]} 8. Na3 {[%clk 0:03:01.2]}
8... b5 {[%clk 0:02:48.6]} 9. Nd5 {[%clk 0:03:01.7]} 9... Be7 {[%clk 0:02:49]}
10. Bxf6 {[%clk 0:03:01.9]} 10... Bxf6 {[%clk 0:02:49.9]} 11. c4 {[%clk
0:02:58.6]} 11... b4 {[%clk 0:02:49.9]} 12. Nc2 {[%clk 0:02:58]} 12... O-O
{[%clk 0:02:50.5]} 13. Be2 {[%clk 0:02:57.2]} 13... Be6 {[%clk 0:02:41.2]} 14.
O-O {[%clk 0:02:41.7]} 14... Bg5 {[%clk 0:02:28.8]} 15. b3 {[%clk 0:02:33.7]}
15... Qa5 {[%clk 0:02:24]} 16. a3 {[%clk 0:02:29]} 16... bxa3 {[%clk 0:02:17.1]}
17. Rxa3 {[%clk 0:02:29.9]} 17... Qd8 {[%clk 0:02:07.3]} 18. Qd3 {[%clk
0:02:28.2]} 18... f5 {[%clk 0:02:00.3]} 19. Bf3 {[%clk 0:02:27.5]} 19... Qb8
{[%clk 0:01:51.2]} 20. exf5 {[%clk 0:02:22.9]} 20... Bxf5 {[%clk 0:01:49.6]} 21.
Be4 {[%clk 0:02:23.6]} 21... g6 {[%clk 0:01:41.4]} 22. g3 {[%clk 0:02:20]} 22...
Qa7 {[%clk 0:01:33.6]} 23. Kg2 {[%clk 0:02:17.4]} 23... Rf7 {[%clk 0:01:30.5]}
24. Nce3 {[%clk 0:02:10.7]} 24... Nd4 {[%clk 0:01:22]} 25. Rfa1 {[%clk 0:01:55]}
25... Raf8 {[%clk 0:01:17.3]} 26. Bxf5 {[%clk 0:01:54.4]} 26... Nxf5 {[%clk
0:01:07.3]} 27. Nd1 {[%clk 0:01:37.6]} 27... Qd4 {[%clk 0:00:58]} 28. Qxd4
{[%clk 0:01:33.4]} 28... Nxd4 {[%clk 0:00:58.9]} 29. Rb1 {[%clk 0:01:22.9]}
29... Rf3 {[%clk 0:00:47.4]} 30. h4 {[%clk 0:01:21.5]} 30... Bh6 {[%clk
0:00:42.4]} 31. Rxa6 {[%clk 0:01:19.8]} 31... Nxb3 {[%clk 0:00:39.2]} 32. Rxd6
{[%clk 0:01:19.6]} 32... Nd2 {[%clk 0:00:39.6]} 33. Rb4 {[%clk 0:01:13.2]} 33...
Ne4 {[%clk 0:00:38]} 34. Rb2 {[%clk 0:01:02.4]} 34... Nxd6 {[%clk 0:00:37.4]}
35. Rc2 {[%clk 0:00:59]} 35... Rd3 {[%clk 0:00:34.2]} 36. Ne7+ {[%clk
0:00:49.4]} 36... Kf7 {[%clk 0:00:30.7]} 37. Nc6 {[%clk 0:00:49.9]} 37... Ke6
{[%clk 0:00:29.8]} 38. Nb2 {[%clk 0:00:46.8]} 38... Rd2 {[%clk 0:00:28.9]} 39.
Rxd2 {[%clk 0:00:46.6]} 39... Bxd2 {[%clk 0:00:29.8]} 40. Nd3 {[%clk 0:00:44]}
40... Bc3 {[%clk 0:00:26.3]} 41. Nc5+ {[%clk 0:00:43.7]} 41... Kf7 {[%clk
0:00:22.5]} 42. Nd7 {[%clk 0:00:41.8]} 42... Rc8 {[%clk 0:00:19.5]} 43. Ndxe5+
{[%clk 0:00:24.7]} 43... Bxe5 {[%clk 0:00:20.4]} 44. Nxe5+ {[%clk 0:00:24.3]}
44... Ke6 {[%clk 0:00:21.3]} 45. Nf3 {[%clk 0:00:21.3]} 45... h6 {[%clk
0:00:19.2]} 46. Nd4+ {[%clk 0:00:20.5]} 46... Kd7 {[%clk 0:00:19.9]} 47. Nf3
{[%clk 0:00:19.8]} 47... Nxc4 {[%clk 0:00:18.4]} 48. g4 {[%clk 0:00:19.1]} 48...
Ke6 {[%clk 0:00:17.5]} 49. Kg3 {[%clk 0:00:19.5]} 49... Ne5 {[%clk 0:00:17.2]}
50. Nd4+ {[%clk 0:00:19.5]} 50... Kd5 {[%clk 0:00:17.5]} 51. Ne2 {[%clk
0:00:19.6]} 51... g5 {[%clk 0:00:15.1]} 52. hxg5 {[%clk 0:00:17.7]} 52... hxg5
{[%clk 0:00:16]} 53. f4 {[%clk 0:00:18.1]} 53... gxf4+ {[%clk 0:00:16.6]} 54.
Nxf4+ {[%clk 0:00:19]} 54... Ke4 {[%clk 0:00:16.9]} 55. Nh5 {[%clk 0:00:19]}
55... Rc3+ {[%clk 0:00:14.7]} 56. Kh4 {[%clk 0:00:19.4]} 56... Nf3+ {[%clk
0:00:15.2]} 57. Kg3 {[%clk 0:00:19.5]} 57... Ke5 {[%clk 0:00:13.1]} 58. Kf2
{[%clk 0:00:15.5]} 58... Ng5 {[%clk 0:00:12.4]} 59. Kg2 {[%clk 0:00:14.9]} 59...
Rd3 {[%clk 0:00:10.2]} 60. Kf2 {[%clk 0:00:15.1]} 60... Ra3 {[%clk 0:00:10.9]}
61. Kg2 {[%clk 0:00:15.5]} 61... Ne4 {[%clk 0:00:11.3]} 62. Kh2 {[%clk
0:00:14.2]} 62... Nf6 {[%clk 0:00:11.7]} 63. Nxf6 {[%clk 0:00:11.8]} 63... Kxf6
{[%clk 0:00:12.6]} 64. Kg2 {[%clk 0:00:12.1]} 64... Kg5 {[%clk 0:00:12.9]} 65.
Kh2 {[%clk 0:00:12.6]} 65... Kxg4 {[%clk 0:00:13.3]} 0-1

[Event "Early-Titled-Tuesday-Blitz-January-30-2024"]
[Site "Chess.com"]
[Date "2024.01.30"]
[Round "9"]
[White "mishanick"]
[Black "ViIIagra"]
[Result "1-0"]
[WhiteElo "3148"]
[BlackElo "2975"]
[TimeControl "180+1"]
[EndTime "9:49:53 PST"]
[Termination "mishanick won by resignation"]

1. d4 {[%clk 0:03:00.9]} 1... Nf6 {[%clk 0:03:00.2]} 2. c4 {[%clk 0:03:01.4]}
2... g6 {[%clk 0:03:00.4]} 3. Nc3 {[%clk 0:03:01.9]} 3... Bg7 {[%clk 0:02:59.2]}
4. e4 {[%clk 0:03:02]} 4... d6 {[%clk 0:02:59.9]} 5. Nf3 {[%clk 0:03:02.4]} 5...
O-O {[%clk 0:02:57.5]} 6. Be2 {[%clk 0:03:03]} 6... e5 {[%clk 0:02:56.7]} 7. Be3
{[%clk 0:03:03.7]} 7... Ng4 {[%clk 0:02:50.5]} 8. Bg5 {[%clk 0:03:03.6]} 8... f6
{[%clk 0:02:51]} 9. Bh4 {[%clk 0:03:04.3]} 9... Nh6 {[%clk 0:02:44.9]} 10. dxe5
{[%clk 0:02:58.8]} 10... dxe5 {[%clk 0:02:11.7]} 11. Qxd8 {[%clk 0:02:57.4]}
11... Rxd8 {[%clk 0:02:12.6]} 12. Nd5 {[%clk 0:02:55.6]} 12... Nd7 {[%clk
0:01:42.8]} 13. Nxc7 {[%clk 0:02:35.1]} 13... Rb8 {[%clk 0:01:42.4]} 14. Rd1
{[%clk 0:02:34.2]} 14... g5 {[%clk 0:01:41.4]} 15. Ne6 {[%clk 0:02:22]} 15...
Re8 {[%clk 0:01:37]} 16. Nxg7 {[%clk 0:02:21.3]} 16... Kxg7 {[%clk 0:01:37.9]}
17. Bg3 {[%clk 0:02:21.6]} 17... Nf7 {[%clk 0:01:34.2]} 18. Nd2 {[%clk 0:02:17]}
18... Nc5 {[%clk 0:01:27.2]} 19. f3 {[%clk 0:02:16.7]} 19... Ne6 {[%clk
0:01:26.2]} 20. Bf2 {[%clk 0:02:07.1]} 20... Nf4 {[%clk 0:01:22.8]} 21. Bf1
{[%clk 0:02:06.7]} 21... b6 {[%clk 0:01:22.7]} 22. Nb1 {[%clk 0:02:01.6]} 22...
g4 {[%clk 0:01:17.3]} 23. Be3 {[%clk 0:01:49.6]} 23... gxf3 {[%clk 0:01:10.4]}
24. gxf3 {[%clk 0:01:50.5]} 24... Ng5 {[%clk 0:01:10.9]} 25. Kf2 {[%clk
0:01:47]} 25... Ngh3+ {[%clk 0:01:00.9]} 26. Ke1 {[%clk 0:01:39.7]} 26... Be6
{[%clk 0:00:56.7]} 27. Nc3 {[%clk 0:01:37.4]} 27... Ng5 {[%clk 0:00:56.5]} 28.
Bxf4 {[%clk 0:01:26.7]} 28... exf4 {[%clk 0:00:57.4]} 29. Kf2 {[%clk 0:01:27.2]}
29... Rbc8 {[%clk 0:00:36.9]} 30. b3 {[%clk 0:01:23.6]} 30... Red8 {[%clk
0:00:36.9]} 31. Nd5 {[%clk 0:00:53.7]} 31... Bxd5 {[%clk 0:00:37]} 32. exd5
{[%clk 0:00:54]} 32... Re8 {[%clk 0:00:37.4]} 33. Rd4 {[%clk 0:00:53.3]} 33...
Re3 {[%clk 0:00:34]} 34. Rxf4 {[%clk 0:00:52.6]} 34... Rc3 {[%clk 0:00:34.5]}
35. h4 {[%clk 0:00:52.9]} 35... Rc2+ {[%clk 0:00:32.2]} 36. Kg3 {[%clk
0:00:49.7]} 36... Nf7 {[%clk 0:00:31.2]} 37. Rh2 {[%clk 0:00:47.7]} 37... Rxh2
{[%clk 0:00:19.7]} 38. Kxh2 {[%clk 0:00:48.6]} 38... Nd6 {[%clk 0:00:20.5]} 39.
Kg3 {[%clk 0:00:47.3]} 39... f5 {[%clk 0:00:15.9]} 40. Rd4 {[%clk 0:00:45]}
40... Kf6 {[%clk 0:00:16.5]} 41. Rd2 {[%clk 0:00:41.7]} 41... Nf7 {[%clk
0:00:10.7]} 42. Re2 {[%clk 0:00:40.6]} 42... Ne5 {[%clk 0:00:11.2]} 43. f4
{[%clk 0:00:23.7]} 43... Rg8+ {[%clk 0:00:11.1]} 44. Kf2 {[%clk 0:00:24.4]}
44... Nd3+ {[%clk 0:00:09.3]} 45. Kf3 {[%clk 0:00:24.4]} 45... Nc5 {[%clk
0:00:09.3]} 46. Re5 {[%clk 0:00:20.5]} 46... Ne4 {[%clk 0:00:08.4]} 47. Bd3
{[%clk 0:00:14.2]} 47... Rg3+ {[%clk 0:00:08]} 48. Ke2 {[%clk 0:00:14.9]} 48...
Nc3+ {[%clk 0:00:08]} 49. Kd2 {[%clk 0:00:14.7]} 49... Nxa2 {[%clk 0:00:07]} 50.
Rxf5+ {[%clk 0:00:15.1]} 50... Ke7 {[%clk 0:00:07.5]} 51. Rg5 {[%clk 0:00:15.4]}
51... Rh3 {[%clk 0:00:07.5]} 52. Rg7+ {[%clk 0:00:15]} 52... Kd6 {[%clk
0:00:08.1]} 53. Rxh7 {[%clk 0:00:14.6]} 53... Nb4 {[%clk 0:00:08.5]} 54. Bf5
{[%clk 0:00:15.1]} 54... a5 {[%clk 0:00:08.1]} 55. h5 {[%clk 0:00:15.3]} 55...
Rxb3 {[%clk 0:00:05.4]} 56. h6 {[%clk 0:00:13.9]} 56... Rb2+ {[%clk 0:00:06]}
57. Ke3 {[%clk 0:00:13.6]} 57... Rh2 {[%clk 0:00:06.9]} 58. Rd7+ {[%clk
0:00:13.5]} 58... Kc5 {[%clk 0:00:07.2]} 59. h7 {[%clk 0:00:14.2]} 59... a4
{[%clk 0:00:06]} 60. Rd8 {[%clk 0:00:14.6]} 60... a3 {[%clk 0:00:06.4]} 61. h8=Q
{[%clk 0:00:13.6]} 61... Rxh8 {[%clk 0:00:05.9]} 62. Rxh8 {[%clk 0:00:14.5]}
62... Kxc4 {[%clk 0:00:06.7]} 63. Ra8 {[%clk 0:00:14.5]} 63... Nxd5+ {[%clk
0:00:07]} 64. Kd2 {[%clk 0:00:12.6]} 64... Kb4 {[%clk 0:00:07.2]} 65. Bd7 {[%clk
0:00:11]} 65... Nxf4 {[%clk 0:00:04.8]} 66. Ra4+ {[%clk 0:00:10.8]} 66... Kb3
{[%clk 0:00:05.6]} 67. Rxf4 {[%clk 0:00:11.3]} 67... a2 {[%clk 0:00:06.5]} 68.
Be6+ {[%clk 0:00:11.9]} 1-0

[Event "Early-Titled-Tuesday-Blitz-January-30-2024"]
[Site "Chess.com"]
[Date "2024.01.30"]
[Round "9"]
[White "Mackster23"]
[Black "ChessLebaneseSalah"]
[Result "1-0"]
[WhiteElo "2657"]
[BlackElo "2466"]
[TimeControl "180+1"]
[EndTime "9:49:53 PST"]
[Termination "Mackster23 won by resignation"]

1. e4 {[%clk 0:02:55.3]} 1... c5 {[%clk 0:03:00]} 2. Nf3 {[%clk 0:02:55.2]} 2...
d6 {[%clk 0:03:00.4]} 3. d4 {[%clk 0:02:55.2]} 3... cxd4 {[%clk 0:03:01.3]} 4.
Nxd4 {[%clk 0:02:54.9]} 4... Nf6 {[%clk 0:03:01.5]} 5. Nc3 {[%clk 0:02:55.3]}
5... Nc6 {[%clk 0:03:01.9]} 6. Bg5 {[%clk 0:02:54.7]} 6... e6 {[%clk 0:03:02]}
7. Qd2 {[%clk 0:02:54.7]} 7... a6 {[%clk 0:03:02.4]} 8. O-O-O {[%clk 0:02:55.3]}
8... Bd7 {[%clk 0:03:02.6]} 9. Kb1 {[%clk 0:02:54.4]} 9... Be7 {[%clk
0:03:01.9]} 10. Nxc6 {[%clk 0:02:53.6]} 10... Bxc6 {[%clk 0:03:02.1]} 11. f3
{[%clk 0:02:54.5]} 11... b5 {[%clk 0:03:00.3]} 12. h4 {[%clk 0:02:51.7]} 12...
Qc7 {[%clk 0:02:56.1]} 13. h5 {[%clk 0:02:36.8]} 13... h6 {[%clk 0:02:53.2]} 14.
Be3 {[%clk 0:02:36.3]} 14... d5 {[%clk 0:02:48.8]} 15. exd5 {[%clk 0:02:35.4]}
15... Nxd5 {[%clk 0:02:48.9]} 16. Nxd5 {[%clk 0:02:34.3]} 16... Bxd5 {[%clk
0:02:48.9]} 17. Bd3 {[%clk 0:02:29.8]} 17... Bf6 {[%clk 0:02:46.7]} 18. Be4
{[%clk 0:02:07.1]} 18... O-O-O {[%clk 0:02:37.8]} 19. Qf2 {[%clk 0:01:39.1]}
19... Bxe4 {[%clk 0:02:14.1]} 20. fxe4 {[%clk 0:01:40]} 20... Qe5 {[%clk
0:02:14.1]} 21. c3 {[%clk 0:01:24.3]} 21... Qxe4+ {[%clk 0:02:13.5]} 22. Ka1
{[%clk 0:01:24.9]} 22... Kb7 {[%clk 0:02:10.5]} 23. Bb6 {[%clk 0:01:17.6]} 23...
Rd3 {[%clk 0:01:54]} 24. Rhe1 {[%clk 0:00:44.4]} 24... Qd5 {[%clk 0:01:48.5]}
25. Rxd3 {[%clk 0:00:40.7]} 25... Qxd3 {[%clk 0:01:49.4]} 26. Bd4 {[%clk
0:00:39.4]} 26... Rd8 {[%clk 0:01:34.8]} 27. a3 {[%clk 0:00:32.1]} 27... Rxd4
{[%clk 0:00:20.9]} 28. cxd4 {[%clk 0:00:30.2]} 28... Qxd4 {[%clk 0:00:20.2]} 29.
Qc2 {[%clk 0:00:22.4]} 29... Qd6 {[%clk 0:00:17.7]} 30. Kb1 {[%clk 0:00:16.4]}
30... Qc6 {[%clk 0:00:16]} 31. Rd1 {[%clk 0:00:11.8]} 31... Qxc2+ {[%clk
0:00:14.9]} 32. Kxc2 {[%clk 0:00:12.7]} 32... Kc6 {[%clk 0:00:14.9]} 33. b3
{[%clk 0:00:11]} 33... a5 {[%clk 0:00:14.9]} 34. a4 {[%clk 0:00:10.9]} 34...
bxa4 {[%clk 0:00:14.1]} 35. bxa4 {[%clk 0:00:11.8]} 35... Be5 {[%clk 0:00:11]}
36. Kb3 {[%clk 0:00:10.7]} 36... f5 {[%clk 0:00:09.7]} 37. Kc4 {[%clk
0:00:10.3]} 37... Bf6 {[%clk 0:00:09.6]} 38. Rf1 {[%clk 0:00:09]} 38... Be5
{[%clk 0:00:07.3]} 39. Re1 {[%clk 0:00:08.1]} 39... Kd6 {[%clk 0:00:06.6]} 40.
Re3 {[%clk 0:00:05.2]} 40... f4 {[%clk 0:00:06.2]} 41. Re4 {[%clk 0:00:03.3]}
41... Bf6 {[%clk 0:00:03.6]} 42. Rxf4 {[%clk 0:00:03.3]} 42... e5 {[%clk
0:00:04.5]} 43. Re4 {[%clk 0:00:03.5]} 43... Ke6 {[%clk 0:00:04.9]} 44. Kb5
{[%clk 0:00:02.4]} 44... Kf5 {[%clk 0:00:05.4]} 45. Re2 {[%clk 0:00:02.1]} 45...
Bd8 {[%clk 0:00:05.9]} 46. Kc5 {[%clk 0:00:02.2]} 46... Kg5 {[%clk 0:00:04.7]}
47. Rxe5+ {[%clk 0:00:02]} 47... Kg4 {[%clk 0:00:05.2]} 48. Kd5 {[%clk
0:00:01.8]} 48... Kg3 {[%clk 0:00:04.9]} 49. Re2 {[%clk 0:00:01.5]} 49... Kh4
{[%clk 0:00:04.6]} 50. Ke6 {[%clk 0:00:01.5]} 50... Kxh5 {[%clk 0:00:04.4]} 51.
Kd7 {[%clk 0:00:01.9]} 51... Bf6 {[%clk 0:00:04.4]} 52. Ke6 {[%clk 0:00:02.5]}
52... Kg5 {[%clk 0:00:04.5]} 53. Kd5 {[%clk 0:00:02.6]} 53... h5 {[%clk
0:00:04.8]} 54. Ke4 {[%clk 0:00:03.5]} 54... Kg4 {[%clk 0:00:04.5]} 55. Ke3
{[%clk 0:00:03.4]} 55... h4 {[%clk 0:00:05]} 56. Kf2 {[%clk 0:00:03.8]} 56... g5
{[%clk 0:00:03.8]} 57. Re4+ {[%clk 0:00:04]} 57... Kf5 {[%clk 0:00:03.8]} 58.
Kf3 {[%clk 0:00:04.9]} 58... Be5 {[%clk 0:00:03.1]} 59. Rc4 {[%clk 0:00:05.4]}
59... Bf4 {[%clk 0:00:03.1]} 60. Rc5+ {[%clk 0:00:05.8]} 60... Kg6 {[%clk
0:00:03.6]} 61. Rxa5 {[%clk 0:00:06.5]} 61... Kh5 {[%clk 0:00:03.2]} 62. Rd5
{[%clk 0:00:07.2]} 62... Bd2 {[%clk 0:00:03.2]} 63. a5 {[%clk 0:00:07.7]} 63...
Bb4 {[%clk 0:00:03.6]} 64. a6 {[%clk 0:00:07.8]} 64... Bc3 {[%clk 0:00:02.8]}
65. a7 {[%clk 0:00:08.1]} 65... Bd4 {[%clk 0:00:03.4]} 66. a8=Q {[%clk
0:00:08.4]} 66... Bg7 {[%clk 0:00:03.4]} 67. Qe8+ {[%clk 0:00:08.7]} 1-0